fUST/lending_fUST_20240704
["ID","MTS","AMOUNT","RATE_DAILY","PERIOD"]
[331102041,1720081845236,-500.0,0.00014456,2]
[331102043,1720081845247,-500.0,0.00014456,2]
[331102045,1720081845257,-505.28198006,0.00014456,2]
[331102046,1720081845266,-500.0,0.00014457,2]
[331102048,1720081845276,-500.0,0.00014457,2]
[331102049,1720081845285,-500.0,0.00014457,2]
[331102051,1720081845294,-500.0,0.00014457,2]
[331102052,1720081845303,-500.0,0.00014457,2]
[331102054,1720081845312,-500.0,0.00014457,2]
[331102055,1720081845321,-500.0,0.00014457,2]
[331102057,1720081845330,-505.40430516,0.00014457,2]
[331102059,1720081845339,-500.0,0.00014457,2]
[331102060,1720081845348,-500.0,0.00014457,2]
[331102061,1720081845358,-507.41226062,0.00014457,2]
[331102062,1720081845367,-500.0,0.00014457,2]
[331102063,1720081845376,-500.0,0.00014457,2]
[331102064,1720081845385,-500.0,0.00014457,2]
[331102065,1720081845395,-323.13227508,0.00014457,2]
[331102066,1720081845403,-500.0,0.00014457,2]
[331102067,1720081845413,-500.0,0.00014457,2]
[331102068,1720081845422,-545.72798756,0.00014457,2]
[331102069,1720081845431,-717.89,0.00014457,2]
[331102070,1720081845440,-500.0,0.00014457,2]
[331102071,1720081845449,-500.0,0.00014457,2]
[331102072,1720081845459,-500.0,0.00014457,2]
[331102073,1720081845474,-162.352123,0.00014457,2]
[331102074,1720081845488,-151.0,0.00014457,2]
[331102075,1720081845496,-166.729659,0.00014457,2]
[331102076,1720081845506,-9489.08,0.00014458,2]
[331102077,1720081845516,-500.0,0.00014458,2]
[331102078,1720081845527,-500.0,0.00014458,2]
[331102079,1720081845537,-500.0,0.00014458,2]
[331102080,1720081845547,-5223.49,0.00014458,2]
[331102081,1720081845556,-958.6,0.00014458,2]
[331102082,1720081845568,-151.0,0.00014458,2]
[331102083,1720081845579,-500.0,0.00014458,2]
[331102084,1720081845588,-195.549841,0.00014458,2]
[331102085,1720081845598,-195.549841,0.00014458,2]
[331102086,1720081845607,-151.0,0.00014458,2]
[331102087,1720081845617,-151.0,0.00014458,2]
[331102088,1720081845626,-618.9,0.00014465,2]
[331102089,1720081845635,-5455.72,0.00014465,2]
[331102090,1720081845644,-151.0,0.00014465,2]
[331102091,1720081845655,-151.0,0.00014465,2]
[331102092,1720081845663,-2902.08,0.00014465,2]
[331102093,1720081845673,-794.65,0.00014465,2]
[331102094,1720081845682,-151.0,0.00014467,2]
[331102095,1720081845692,-151.0,0.00014467,2]
[331102096,1720081845701,-151.0,0.00014467,2]
[331102097,1720081845711,-310.0,0.00014467,2]
[331102098,1720081845724,-310.0,0.00014467,2]
[331102099,1720081845734,-457.699208,0.00014467,2]
[331102100,1720081845743,-160.013851,0.00014467,2]
[331102101,1720081845850,-151.0,0.00014467,2]
[331102102,1720081845860,-151.0,0.00014467,2]
[331102103,1720081845870,-35395.9148858,0.0001471,2]
[331102104,1720081845879,-151.0,0.00014715,2]
[331102105,1720081845888,-151.0,0.00014715,2]
[331102106,1720081845898,-500.0,0.00014716,2]
[331102107,1720081845907,-500.0,0.00014719,2]
[331102108,1720081845916,-2157.66,0.00014719,2]
[331102109,1720081845926,-13195.12,0.00014719,2]
[331102110,1720081845935,-1457.52,0.00014719,2]
[331102111,1720081845944,-2650.42,0.00014719,2]
[331102112,1720081845954,-625.2,0.0001472,2]
[331102113,1720081845966,-500.0,0.0001472,2]
[331102114,1720081845976,-1887.95,0.0001472,2]
[331102115,1720081845986,-2433.82,0.0001472,2]
[331102116,1720081845996,-1269.34,0.0001472,2]
[331102117,1720081846006,-221.89,0.0001472,2]
[331102118,1720081846016,-1047.58,0.0001472,2]
[331102119,1720081846026,-500.0,0.0001472,2]
[331102120,1720081846035,-4769.36,0.0001472,2]
[331102121,1720081846046,-500.0,0.0001472,2]
[331102122,1720081846056,-500.0,0.0001472,2]
[331102123,1720081846065,-500.0,0.0001472,2]
[331102124,1720081846075,-1174.99,0.0001472,2]
[331102125,1720081846084,-1006.18,0.0001472,2]
[331102126,1720081846093,-500.0,0.00014725,2]
[331102127,1720081846102,-1032.18,0.00014725,2]
[331102128,1720081846112,-500.0,0.00014725,2]
[331102129,1720081846121,-500.0,0.00014725,2]
[331102130,1720081846130,-1302.87,0.00014725,2]
[331102131,1720081846139,-500.0,0.00014725,2]
[331102132,1720081846149,-500.0,0.00014725,2]
[331102133,1720081846158,-799.56,0.00014725,2]
[331102134,1720081846167,-1179.4,0.00014725,2]
[331102135,1720081846177,-500.0,0.00014725,2]
[331102136,1720081846186,-500.0,0.00014725,2]
[331102137,1720081846195,-696.5,0.00014725,2]
[331102138,1720081846205,-600.79,0.00014725,2]
[331102139,1720081846219,-500.0,0.00014725,2]
[331102140,1720081846228,-500.0,0.00014725,2]
[331102141,1720081846238,-500.0,0.00014725,2]
[331102142,1720081846250,-717.89,0.00014725,2]
[331102143,1720081846260,-500.0,0.00014725,2]
[331102144,1720081846269,-500.0,0.00014725,2]
[331102145,1720081846278,-649.93365918,0.00014725,2]
[331102146,1720081846287,-556.04,0.00014725,2]
[331102147,1720081846297,-560.01,0.00014725,2]
[331102148,1720081846306,-500.0,0.00014725,2]
[331102149,1720081846315,-500.0,0.00014725,2]
[331102150,1720081846324,-500.0,0.00014725,2]
[331102151,1720081846333,-500.0,0.00014725,2]
[331102152,1720081846343,-500.0,0.00014725,2]
[331102153,1720081846351,-4913.11,0.00014725,2]
[331102154,1720081846360,-151.0,0.00014725,2]
[331102155,1720081846370,-500.0,0.00014725,2]
[331102156,1720081846380,-500.0,0.00014725,2]
[331102157,1720081846389,-713.73,0.00014725,2]
[331102158,1720081846399,-500.0,0.00014725,2]
[331102159,1720081846408,-151.0,0.00014725,2]
[331102160,1720081846417,-151.0,0.00014725,2]
[331102161,1720081846427,-500.0,0.00014725,2]
[331102162,1720081846436,-814.41,0.00014725,2]
[331102163,1720081846445,-500.0,0.00014725,2]
[331102164,1720081846454,-500.0,0.00014725,2]
[331102165,1720081846468,-500.0,0.00014725,2]
[331102166,1720081846482,-247.928671,0.00014725,2]
[331102167,1720081846491,-151.0,0.00014725,2]
[331102168,1720081846501,-500.0,0.00014725,2]
[331102169,1720081846512,-500.0,0.00014725,2]
[331102170,1720081846521,-500.0,0.00014725,2]
[331102171,1720081846530,-195.549841,0.00014725,2]
[331102172,1720081846539,-195.549841,0.00014725,2]
[331102173,1720081846548,-151.0,0.00014725,2]
[331102174,1720081846558,-156.57167,0.00014725,2]
[331102175,1720081846567,-151.0,0.00014725,2]
[331102176,1720081846578,-500.0,0.00014726,2]
[331102177,1720081846587,-206.29724468,0.00014726,2]
[331102178,1720081846596,-500.0,0.00014726,2]
[331102179,1720081846605,-500.0,0.00014726,2]
[331102180,1720081846615,-574.3,0.00014726,2]
[331102181,1720081846624,-566.73,0.00014726,2]
[331102182,1720081846634,-500.0,0.00014726,2]
[331102183,1720081846643,-655.68,0.00014726,2]
[331102184,1720081846653,-500.0,0.00014726,2]
[331102185,1720081846662,-293.63310906,0.00014726,2]
[331102186,1720081846672,-500.0,0.00014726,2]
[331102187,1720081846682,-372.98791134,0.00014726,2]
[331102188,1720081846691,-500.0,0.00014726,2]
[331102189,1720081846702,-500.0,0.00014726,2]
[331102190,1720081846715,-500.0,0.00014726,2]
[331102191,1720081846725,-500.0,0.00014726,2]
[331102192,1720081846735,-500.0,0.00014726,2]
[331102193,1720081846745,-9042.71,0.00014726,2]
[331102194,1720081846755,-500.0,0.00014726,2]
[331102195,1720081846764,-500.0,0.00014726,2]
[331102196,1720081846774,-500.0,0.00014726,2]
[331102197,1720081846783,-500.0,0.00014726,2]
[331102198,1720081846792,-500.0,0.00014726,2]
[331102199,1720081846801,-500.0,0.00014726,2]
[331102200,1720081846810,-500.0,0.00014726,2]
[331102201,1720081846819,-500.0,0.00014726,2]
[331102202,1720081846828,-500.0,0.00014726,2]
[331102203,1720081846838,-500.0,0.00014726,2]
[331102204,1720081846847,-500.0,0.00014726,2]
[331102205,1720081846856,-445.85910362,0.00014726,2]
[331102206,1720081846865,-799.86,0.00014726,2]
[331102207,1720081846875,-500.0,0.00014726,2]
[331102208,1720081846884,-385.9061482,0.00014726,2]
[331102209,1720081846894,-512.88295566,0.00014726,2]
[331102210,1720081846904,-455.50631617,0.00014726,2]
[331102211,1720081846914,-500.0,0.00014726,2]
[331102212,1720081846923,-500.0,0.00014726,2]
[331102213,1720081846933,-500.0,0.00014726,2]
[331102214,1720081846943,-500.0,0.00014726,2]
[331102215,1720081846953,-540.73,0.00014726,2]
[331102216,1720081846968,-500.0,0.00014726,2]
[331102217,1720081846978,-500.0,0.00014726,2]
[331102218,1720081846988,-500.0,0.00014726,2]
[331102219,1720081846999,-503.7523198,0.00014726,2]
[331102220,1720081847009,-861.67,0.00014726,2]
[331102221,1720081847020,-416.36549571,0.00014726,2]
[331102222,1720081847030,-500.0,0.00014726,2]
[331102223,1720081847041,-500.0,0.00014726,2]
[331102224,1720081847052,-508.58408897,0.00014726,2]
[331102225,1720081847063,-500.0,0.00014726,2]
[331102226,1720081847074,-500.0,0.00014726,2]
[331102227,1720081847085,-500.0,0.00014726,2]
[331102228,1720081847095,-500.0,0.00014726,2]
[331102229,1720081847105,-500.0,0.00014726,2]
[331102230,1720081847115,-500.0,0.00014726,2]
[331102231,1720081847125,-876.05,0.00014726,2]
[331102232,1720081847135,-4247.82,0.00014726,2]
[331102233,1720081847143,-500.0,0.00014726,2]
[331102234,1720081847153,-500.0,0.00014726,2]
[331102235,1720081847162,-500.0,0.00014726,2]
[331102236,1720081847170,-10046.46854196,0.00014727,2]
[331102237,1720081847317,-468.51571517,0.00014727,2]
[331102239,1720081847829,-500.0,0.00014168,2]
[331102240,1720081847838,-500.0,0.00014179,2]
[331102241,1720081847847,-500.0,0.00014179,2]
[331102242,1720081847856,-504.073233,0.00014442,2]
[331102243,1720081847865,-500.0,0.00014452,2]
[331102244,1720081847874,-500.0,0.00014453,2]
[331102245,1720081847883,-509.20237684,0.00014726,2]
[331102246,1720081847893,-2581.69712905,0.00014727,2]
[331102248,1720081847902,-500.0,0.00014727,2]
[331102249,1720081847911,-500.0,0.00014727,2]
[331102251,1720081847921,-500.0,0.00014727,2]
[331102252,1720081847930,-500.0,0.00014727,2]
[331102253,1720081847940,-198.0,0.00014727,2]
[331102254,1720081847949,-151.0,0.00014727,2]
[331102255,1720081847959,-515.75,0.00014727,2]
[331102256,1720081847975,-500.0,0.00014727,2]
[331102257,1720081847984,-397.19171243,0.00014727,2]
[331102265,1720081907287,-3130.06017381,0.00014999,4]
[331102267,1720081961413,229.187955,0.00013699,2]
[331102273,1720082030205,2831.7809937,0.00013699,2]
[331102274,1720082043353,3130.06017381,0.00014999,4]
[331102275,1720082061827,1748.52304575,0.00013699,2]
[331102285,1720082193361,3130.06017381,0.00014999,4]
[331102316,1720082223551,10980.5415051,0.00013699,2]
[331102369,1720082242696,531.11088939,9.999e-05,2]
[331102382,1720082292891,527.96736078,9.999e-05,2]
[331102385,1720082317310,570.67502715,0.0001212,2]
[331102386,1720082338495,155.06624804,9.999e-05,2]
[331102391,1720082364366,3130.06017381,0.00014999,4]
[331102399,1720082391199,155.14184401,9.999e-05,2]
[331102401,1720082410876,3130.06017381,0.0001212,4]
[331102403,1720082445874,556.65795586,0.0001212,4]
[331102405,1720082483982,256.595459,0.00013699,2]
[331102435,1720082713599,161.78266507,9.999e-05,2]
[331102436,1720082716479,577.6267012,0.00013149,2]
[331102442,1720082786729,403.28846454,9.999e-05,2]
[331102443,1720082789339,1331.1962621,0.00013377,2]
[331102448,1720082837117,-2137.03169252,0.00014048,2]
[331102449,1720082840106,-749.36534227,0.00014048,2]
[331102450,1720082840126,-521.81066056,0.00014066,2]
[331102451,1720082851209,-4520.26093585,0.00014066,2]
[331102452,1720082851235,-300.0,0.00014068,2]
[331102453,1720082851256,-300.0,0.00014068,2]
[331102454,1720082851277,-3132.6452033,0.00014069,2]
[331102470,1720082957731,263.53447751,9.999e-05,2]
[331102527,1720083033042,-324.66195678,0.00014057,2]
[331102529,1720083033052,-833.47304322,0.00014069,2]
[331102637,1720083036312,227.04137473,0.00013699,2]
[331102638,1720083036335,29.55408427,0.00013699,2]
[331102671,1720083038368,-1075.95334988,0.00014069,2]
[331102673,1720083038378,-235.33097063,0.00014069,2]
[331102675,1720083038388,-4438.71567949,0.00014072,2]
[331102680,1720083038426,-603.35591691,0.00014072,2]
[331102683,1720083038436,-300.0,0.00014072,2]
[331102684,1720083038446,-300.0,0.00014072,2]
[331102686,1720083038455,-1133.56313975,0.00014073,2]
[331102688,1720083038465,-5042.0715964,0.00014074,2]
[331102690,1720083038475,-5042.0715964,0.00014077,2]
[331102692,1720083038485,-368.05389685,0.00014155,2]
[331102694,1720083038494,-163.23642629,0.00014155,2]
[331102696,1720083038504,-500.0,0.00014156,2]
[331102698,1720083038513,-500.0,0.00014156,2]
[331102701,1720083038523,-2222.76,0.00014156,2]
[331102704,1720083038533,-500.0,0.00014156,2]
[331102706,1720083038543,-345.95245614,0.00014156,2]
[331102708,1720083038553,-13029.26,0.00014156,2]
[331102710,1720083038563,-1442.21,0.00014156,2]
[331102712,1720083038573,-2672.88,0.00014156,2]
[331102714,1720083038583,-48087.0668606,0.00014156,2]
[331102716,1720083038592,-500.0,0.00014157,2]
[331102718,1720083038602,-505.51173001,0.00014157,2]
[331102720,1720083038611,-500.0,0.00014157,2]
[331102722,1720083038621,-506.19410695,0.00014157,2]
[331102724,1720083038630,-348.83534533,0.00014157,2]
[331102726,1720083038640,-500.0,0.00014157,2]
[331102728,1720083038650,-500.0,0.00014157,2]
[331102729,1720083038660,-505.63436566,0.00014157,2]
[331102731,1720083038671,-500.0,0.00014157,2]
[331102733,1720083038682,-500.0,0.00014157,2]
[331102735,1720083038692,-507.85168734,0.00014157,2]
[331102737,1720083038702,-503.91974439,0.00014157,2]
[331102739,1720083038712,-505.1629612,0.00014157,2]
[331102741,1720083038721,-504.1322412,0.00014157,2]
[331102743,1720083038731,-505.46619013,0.00014157,2]
[331102745,1720083038741,-500.0,0.00014157,2]
[331102747,1720083038750,-502.24044204,0.00014157,2]
[331102749,1720083038759,-506.39025932,0.00014157,2]
[331102751,1720083038769,-502.867436,0.00014157,2]
[331102753,1720083038779,-527.96335354,0.00014157,2]
[331102755,1720083038789,-501.54577722,0.00014157,2]
[331102756,1720083038801,-500.0,0.00014157,2]
[331102758,1720083038811,-715.97,0.00014157,2]
[331102761,1720083038829,-504.95194089,0.00014157,2]
[331102763,1720083038844,-501.53968215,0.00014157,2]
[331102765,1720083038855,-503.22960539,0.00014157,2]
[331102767,1720083038866,-411.25285483,0.00014157,2]
[331102769,1720083038877,-500.0,0.00014157,2]
[331102771,1720083038888,-502.33221676,0.00014157,2]
[331102773,1720083038897,-500.0,0.00014157,2]
[331102775,1720083038908,-504.34013973,0.00014157,2]
[331102778,1720083038920,-500.0,0.00014157,2]
[331102780,1720083038931,-502.29625066,0.00014157,2]
[331102782,1720083038941,-500.0,0.00014157,2]
[331102784,1720083038951,-501.85057337,0.00014157,2]
[331102786,1720083038961,-500.0,0.00014157,2]
[331102788,1720083038972,-500.0,0.00014157,2]
[331102790,1720083038984,-500.0,0.00014157,2]
[331102792,1720083038994,-504.04088921,0.00014157,2]
[331102794,1720083039004,-504.01875086,0.00014157,2]
[331102796,1720083039015,-500.0,0.00014157,2]
[331102798,1720083039026,-500.0,0.00014157,2]
[331102800,1720083039037,-1911.74,0.00014157,2]
[331102802,1720083039052,-500.0,0.00014157,2]
[331102804,1720083039063,-2456.32,0.00014157,2]
[331102806,1720083039074,-500.0,0.00014157,2]
[331102808,1720083039084,-500.0,0.00014157,2]
[331102809,1720083039095,-500.0,0.00014157,2]
[331102811,1720083039105,-251.08887241,0.00014157,2]
[331102813,1720083039116,-1284.6,0.00014157,2]
[331102815,1720083039127,-500.0,0.00014157,2]
[331102817,1720083039138,-543.28423714,0.00014157,2]
[331102818,1720083039149,-505.03447168,0.00014157,2]
[331102819,1720083039159,-500.0,0.00014157,2]
[331102821,1720083039170,-500.0,0.00014157,2]
[331102822,1720083039181,-1109.21,0.00014157,2]
[331102824,1720083039191,-500.0,0.00014157,2]
[331102826,1720083039202,-503.19946116,0.00014157,2]
[331102828,1720083039212,-500.0,0.00014157,2]
[331102830,1720083039223,-4876.87,0.00014157,2]
[331102832,1720083039233,-500.0,0.00014157,2]
[331102833,1720083039243,-500.0,0.00014157,2]
[331102835,1720083039253,-664.27,0.00014157,2]
[331102837,1720083039263,-500.0,0.00014157,2]
[331102838,1720083039273,-500.0,0.00014157,2]
[331102840,1720083039283,-504.74927562,0.00014157,2]
[331102841,1720083039296,-500.0,0.00014157,2]
[331102842,1720083039306,-500.0,0.00014157,2]
[331102844,1720083039317,-503.34185757,0.00014157,2]
[331102845,1720083039327,-500.0,0.00014157,2]
[331102846,1720083039337,-500.0,0.00014157,2]
[331102847,1720083039347,-506.06682483,0.00014157,2]
[331102848,1720083039357,-500.0,0.00014157,2]
[331102849,1720083039368,-500.0,0.00014157,2]
[331102850,1720083039378,-500.0,0.00014157,2]
[331102851,1720083039389,-512.93878184,0.00014157,2]
[331102852,1720083039399,-500.0,0.00014157,2]
[331102853,1720083039410,-500.0,0.00014157,2]
[331102854,1720083039420,-503.89990542,0.00014157,2]
[331102855,1720083039430,-502.5767915,0.00014157,2]
[331102856,1720083039440,-500.0,0.00014157,2]
[331102857,1720083039450,-500.0,0.00014157,2]
[331102858,1720083039461,-504.35004987,0.00014157,2]
[331102859,1720083039471,-500.0,0.00014157,2]
[331102860,1720083039481,-1167.08,0.00014157,2]
[331102861,1720083039491,-512.60721701,0.00014157,2]
[331102862,1720083039502,-501.42338525,0.00014157,2]
[331102863,1720083039513,-990.53,0.00014157,2]
[331102864,1720083039525,-502.92117065,0.00014157,2]
[331102865,1720083039536,-505.30042968,0.00014157,2]
[331102866,1720083039548,-4429.66,0.00014157,2]
[331102867,1720083039559,-502.66788275,0.00014157,2]
[331102868,1720083039571,-17021.00693157,0.00014158,2]
[331102869,1720083039582,-144261.200582,0.00014158,2]
[331102870,1720083039592,-500.0,0.00014166,2]
[331102871,1720083039602,-1040.18,0.00014166,2]
[331102872,1720083039613,-500.0,0.00014166,2]
[331102873,1720083039623,-500.0,0.00014166,2]
[331102874,1720083039634,-500.0,0.00014166,2]
[331102875,1720083039644,-500.0,0.00014166,2]
[331102876,1720083039654,-500.0,0.00014166,2]
[331102877,1720083039667,-1370.46,0.00014166,2]
[331102878,1720083039679,-503.93441485,0.00014166,2]
[331102879,1720083039690,-500.0,0.00014166,2]
[331102881,1720083039700,-605.62631384,0.00014166,2]
[331102883,1720083039711,-500.0,0.00014166,2]
[331102885,1720083039722,-500.0,0.00014166,2]
[331102888,1720083039732,-500.0,0.00014166,2]
[331102890,1720083039743,-500.0,0.00014166,2]
[331102892,1720083039753,-881.41,0.00014166,2]
[331102894,1720083039765,-1237.08,0.00014166,2]
[331102896,1720083039776,-504.55048619,0.00014166,2]
[331102897,1720083039786,-500.0,0.00014166,2]
[331102898,1720083039798,-500.0,0.00014166,2]
[331102899,1720083039809,-500.0,0.00014166,2]
[331102900,1720083039819,-733.41,0.00014166,2]
[331102901,1720083039830,-591.25780219,0.00014166,2]
[331102902,1720083039849,-225.18702295,0.00014166,2]
[331102903,1720083039861,-520.01352078,0.00014166,2]
[331102904,1720083039872,-500.0,0.00014166,2]
[331102905,1720083039883,-504.07488928,0.00014166,2]
[331102906,1720083039893,-500.0,0.00014166,2]
[331102907,1720083039903,-663.99,0.00014166,2]
[331102908,1720083039914,-500.0,0.00014166,2]
[331102909,1720083039925,-500.0,0.00014166,2]
[331102911,1720083039936,-500.0,0.00014166,2]
[331102913,1720083039947,-500.0,0.00014166,2]
[331102914,1720083039958,-501.66508085,0.00014166,2]
[331102916,1720083039968,-501.17801153,0.00014166,2]
[331102918,1720083039979,-601.52333115,0.00014166,2]
[331102920,1720083039990,-504.92352374,0.00014166,2]
[331102921,1720083040000,-500.0,0.00014166,2]
[331102922,1720083040011,-500.0,0.00014166,2]
[331102924,1720083040022,-500.0,0.00014166,2]
[331102925,1720083040032,-500.0,0.00014166,2]
[331102927,1720083040044,-536.49865275,0.00014166,2]
[331102929,1720083040054,-500.0,0.00014166,2]
[331102931,1720083040064,-500.0,0.00014166,2]
[331102932,1720083040074,-500.0,0.00014166,2]
[331102934,1720083040085,-500.0,0.00014166,2]
[331102935,1720083040095,-500.0,0.00014166,2]
[331102936,1720083040106,-536.68,0.00014166,2]
[331102938,1720083040116,-501.08516647,0.00014166,2]
[331102940,1720083040127,-598.47,0.00014166,2]
[331102941,1720083040138,-500.0,0.00014166,2]
[331102942,1720083040149,-500.0,0.00014166,2]
[331102943,1720083040160,-504.19239552,0.00014166,2]
[331102944,1720083040170,-500.0,0.00014166,2]
[331102945,1720083040180,-500.0,0.00014166,2]
[331102947,1720083040191,-500.0,0.00014166,2]
[331102948,1720083040201,-503.4498777,0.00014166,2]
[331102950,1720083040211,-500.0,0.00014166,2]
[331102952,1720083040220,-500.0,0.00014166,2]
[331102954,1720083040230,-510.90363991,0.00014166,2]
[331102955,1720083040241,-500.0,0.00014166,2]
[331102956,1720083040250,-500.0,0.00014166,2]
[331102957,1720083040260,-500.0,0.00014166,2]
[331102958,1720083040270,-500.0,0.00014166,2]
[331102959,1720083040410,-770.15,0.00014166,2]
[331102960,1720083040422,-500.0,0.00014166,2]
[331102961,1720083040432,-500.0,0.00014166,2]
[331102962,1720083040443,-500.0,0.00014166,2]
[331102963,1720083040453,-501.41873712,0.00014166,2]
[331102964,1720083040462,-500.0,0.00014166,2]
[331102965,1720083040472,-507.29910008,0.00014166,2]
[331102966,1720083040482,-500.0,0.00014166,2]
[331102967,1720083040492,-500.0,0.00014166,2]
[331102968,1720083040502,-500.0,0.00014166,2]
[331102969,1720083040512,-895.65,0.00014166,2]
[331102970,1720083040522,-558.73,0.00014166,2]
[331102971,1720083040532,-500.0,0.00014166,2]
[331102972,1720083040543,-500.0,0.00014166,2]
[331102973,1720083040552,-500.0,0.00014166,2]
[331102974,1720083040562,-500.0,0.00014166,2]
[331102975,1720083040571,-500.0,0.00014166,2]
[331102976,1720083040581,-500.0,0.00014166,2]
[331102977,1720083040591,-500.0,0.00014166,2]
[331102978,1720083040600,-500.0,0.00014166,2]
[331102979,1720083040610,-504.57823144,0.00014166,2]
[331102980,1720083040620,-502.38824736,0.00014166,2]
[331102981,1720083040630,-501.23035577,0.00014166,2]
[331102982,1720083040640,-500.0,0.00014167,2]
[331102983,1720083040650,-500.0,0.00014167,2]
[331102984,1720083040661,-500.0,0.00014167,2]
[331102985,1720083040671,-500.0,0.00014167,2]
[331102986,1720083040683,-500.0,0.00014167,2]
[331102987,1720083040693,-392.40600233,0.00014167,2]
[331102988,1720083040703,-500.0,0.00014167,2]
[331102989,1720083040712,-629.32523129,0.00014167,2]
[331102990,1720083040722,-503.79900098,0.00014167,2]
[331102991,1720083040732,-506.60910419,0.00014168,2]
[331102992,1720083040741,-500.0,0.00014168,2]
[331102993,1720083040751,-500.0,0.00014168,2]
[331102994,1720083040760,-503.71033226,0.00014168,2]
[331102995,1720083040769,-500.80688013,0.00014168,2]
[331102996,1720083040780,-500.0,0.00014168,2]
[331102997,1720083040790,-503.51893587,0.00014168,2]
[331102998,1720083040802,-504.25187794,0.00014168,2]
[331102999,1720083040812,-505.43400334,0.00014168,2]
[331103000,1720083040823,-502.23915687,0.00014168,2]
[331103001,1720083040832,-500.0,0.00014168,2]
[331103002,1720083040846,-500.0,0.00014168,2]
[331103003,1720083040855,-504.66005101,0.00014168,2]
[331103004,1720083040864,-500.0,0.00014168,2]
[331103005,1720083040874,-612.66,0.00014168,2]
[331103006,1720083040885,-509.26101303,0.00014168,2]
[331103007,1720083040895,-500.0,0.00014168,2]
[331103008,1720083040905,-500.0,0.00014168,2]
[331103009,1720083040916,-502.93339657,0.00014168,2]
[331103010,1720083040928,-500.0,0.00014168,2]
[331103011,1720083040937,-500.0,0.00014168,2]
[331103012,1720083040947,-503.16489389,0.00014168,2]
[331103013,1720083040956,-500.0,0.00014168,2]
[331103014,1720083040966,-500.0,0.00014168,2]
[331103015,1720083040975,-693.84,0.00014168,2]
[331103016,1720083040996,-500.0,0.00014168,2]
[331103017,1720083041006,-500.0,0.00014168,2]
[331103018,1720083041016,-502.96558748,0.00014168,2]
[331103019,1720083041027,-501.90644891,0.00014168,2]
[331103020,1720083041037,-500.0,0.00014168,2]
[331103021,1720083041053,-169.57752147,0.00014168,2]
[331103022,1720083041064,-500.0,0.00014168,2]
[331103023,1720083041075,-500.0,0.00014168,2]
[331103024,1720083041085,-500.0,0.00014168,2]
[331103025,1720083041095,-500.0,0.00014168,2]
[331103026,1720083041106,-503.86253498,0.00014168,2]
[331103027,1720083041116,-500.0,0.00014168,2]
[331103028,1720083041125,-258.5109013,0.00014168,2]
[331103029,1720083041135,-372.98791134,0.00014168,2]
[331103030,1720083041145,-500.0,0.00014168,2]
[331103031,1720083041154,-500.0,0.00014168,2]
[331103032,1720083041164,-504.4939679,0.00014168,2]
[331103033,1720083041174,-500.0,0.00014168,2]
[331103034,1720083041185,-500.0,0.00014168,2]
[331103035,1720083041195,-500.0,0.00014168,2]
[331103036,1720083041207,-502.00979454,0.00014168,2]
[331103037,1720083041217,-500.0,0.00014168,2]
[331103038,1720083041227,-500.0,0.00014168,2]
[331103039,1720083041238,-500.0,0.00014168,2]
[331103040,1720083041247,-505.48944372,0.00014168,2]
[331103041,1720083041257,-500.0,0.00014168,2]